bitfinex/quotes_SOLUSD_20250307
["timestamp","ask_amount","ask_price","bid_price","bid_amount"]
[1741307084432,22.0,139.24,139.13,0.14216157]
[1741307084626,23.2444169,139.23,139.08,1.50855841]
[1741307084827,23.2444169,139.27,139.11,50.4339316]
[1741307085169,1.2444169,139.27,139.1,50.4339316]
[1741307085445,22.0,139.34,139.12,0.14216157]
[1741307085635,23.2444169,139.33,139.18,0.14216157]
[1741307085939,22.0,139.32,139.2,0.14216157]
[1741307086140,22.14216157,139.29,139.09,1.50809023]
[1741307086340,23.2444169,139.28,139.08,52.08491981]
[1741307086641,0.14216157,139.27,139.11,312.0]
[1741307086825,0.14216157,139.25,139.11,312.0]
[1741307087032,23.2444169,139.24,139.11,50.4339316]
[1741307087341,0.033,139.3,139.14,0.14216157]
[1741307087639,0.033,139.3,139.11,1.50784353]
[1741307087640,22.0,139.29,139.11,1.50784353]
[1741307087846,1.2774169,139.3,139.19,0.14216157]
[1741307088145,0.033,139.3,139.24,50.4339316]
[1741307088339,0.033,139.3,139.26,0.14216157]
[1741307088642,0.033,139.3,139.21,0.28432314]
[1741307088941,0.033,139.3,139.22,51.94116494]
[1741307089158,0.033,139.3,139.27,0.14216157]
[1741307089319,0.033,139.3,139.21,1.50701611]
[1741307089521,0.033,139.3,139.1,0.21324235]
[1741307089723,0.033,139.3,139.16,50.4339316]
[1741307089920,22.0,139.29,139.16,50.4339316]
[1741307090144,22.0,139.29,139.16,362.4339316]
[1741307090445,23.2444169,139.28,139.11,0.03]
[1741307090627,22.0,139.27,139.11,0.03]
[1741307090827,0.033,139.3,139.13,43.49858025]
[1741307090828,23.2444169,139.26,139.13,43.49858025]
[1741307091031,22.0,139.26,139.17,0.14216157]
[1741307091325,22.0,139.29,139.12,0.14216157]
[1741307091540,1.2444169,139.28,139.14,0.14216157]
[1741307091854,22.0,139.27,139.11,0.03]
[1741307092039,50.0,139.25,139.11,0.03]
[1741307092243,1.8108,139.23,139.01,43.49858025]
[1741307092428,23.2444169,139.22,139.03,43.49858025]
[1741307092632,23.2444169,139.22,139.07,43.49858025]
[1741307092920,22.0,139.21,139.09,43.49858025]
[1741307093120,1.2444169,139.2,139.04,1.50879175]
[1741307093333,22.14216157,139.19,139.02,155.58]
[1741307093654,0.14216157,139.17,139.03,22.15702887]
[1741307093861,50.14216157,139.15,139.03,22.15702887]
[1741307094026,0.14216157,139.13,139.0,43.52858025]
[1741307094357,23.2444169,139.18,139.01,1.51030636]
[1741307094539,22.0,139.17,139.06,43.49858025]
[1741307094857,23.2444169,139.16,139.0,0.03]
[1741307095057,23.2444169,139.25,139.07,43.49858025]
[1741307095227,23.2444169,139.25,139.14,0.14216157]
[1741307095228,1.2444169,139.25,139.14,0.14216157]
[1741307095429,1.2444169,139.25,139.13,43.49858025]
[1741307095625,1.2444169,139.25,139.07,1.50875459]
[1741307095626,22.0,139.24,139.07,1.50875459]
[1741307095830,1.2444169,139.25,139.06,155.62]
[1741307095831,0.14216157,139.22,139.06,155.62]
[1741307096027,23.2444169,139.21,139.0,0.03]
[1741307096255,73.25930334,139.2,139.0,0.03]
[1741307096462,74.50372024,139.19,139.0,0.03]
[1741307096666,50.0,139.15,139.0,0.03]
[1741307096956,0.14216157,139.09,138.95,2.1538496]
[1741307097149,23.2444169,139.08,138.95,2.1538496]
[1741307097351,0.14216157,139.07,138.95,2.1538496]
[1741307097549,1.2444169,139.06,138.96,43.49858025]
[1741307097759,22.0,139.05,138.95,2.1538496]
[1741307097957,0.14216157,139.11,138.96,43.49858025]
[1741307098174,1.2444169,139.1,139.01,43.49858025]
[1741307098349,22.0,139.13,139.03,43.49858025]
[1741307098661,22.0,139.13,139.01,43.49858025]
[1741307098662,22.0,139.12,139.01,43.49858025]
[1741307098948,22.0,139.12,139.03,43.49858025]
[1741307099159,1.2444169,139.11,139.0,43.49858025]
[1741307099364,1.2444169,139.15,139.04,43.64074182]
[1741307099659,22.0,139.14,139.01,1.50955108]
[1741307099834,23.2444169,139.13,139.0,312.0]
[1741307100039,23.44711929,139.12,138.91,155.66]
[1741307100252,23.2444169,139.11,138.91,155.66]
[1741307100439,22.0,139.1,138.98,43.49858025]
[1741307100625,271.25661396,139.21,138.91,155.66]
[1741307100626,23.2444169,139.18,139.06,43.49858025]
[1741307100829,23.2444169,139.24,139.1,43.49858025]
[1741307101051,1.2444169,139.24,139.15,43.49858025]
[1741307101258,23.2444169,139.27,139.17,43.49858025]
[1741307101457,1.2774169,139.3,139.21,43.49858025]
[1741307101630,1.2774169,139.3,139.2,0.14216157]
[1741307101631,0.033,139.3,139.26,43.49858025]
[1741307101832,0.033,139.3,139.28,43.49858025]
[1741307102031,0.033,139.3,139.24,0.28432314]
[1741307102246,0.033,139.3,139.29,43.78290339]
[1741307102453,0.033,139.3,139.29,43.49858025]
[1741307102680,0.033,139.3,139.29,43.78290339]
[1741307102844,0.03207168,139.3,139.29,45.14755018]
[1741307103042,0.03207168,139.3,139.29,1.50680836]
[1741307103368,0.03207168,139.3,139.22,43.49858025]
[1741307103531,0.03207168,139.3,139.24,0.14216157]
[1741307103735,0.03207168,139.3,139.19,1.50737947]
[1741307104292,0.03207168,139.3,139.18,199.21858025]
[1741307104455,22.0,139.29,139.21,43.49858025]
[1741307104781,0.03207168,139.3,139.24,0.14216157]
[1741307104985,0.03207168,139.3,139.27,43.49858025]
[1741307105152,0.03207168,139.3,139.28,1.5069992]
[1741307105351,0.03207168,139.3,139.24,43.49858025]
[1741307105548,0.03207168,139.3,139.2,0.14216157]
[1741307105774,0.03207168,139.3,139.11,5.0739]
[1741307105974,0.14216157,139.28,139.12,43.49858025]
[1741307106176,0.14216157,139.26,139.1,11.0109]
[1741307106383,23.2444169,139.25,139.11,43.49858025]
[1741307106685,0.03207168,139.3,139.1,1.5089906]
[1741307106686,1.27648858,139.3,139.12,1.50866647]
[1741307106871,22.03207168,139.3,139.13,0.28432314]
[1741307107192,0.03207168,139.3,139.21,0.14216157]
[1741307107492,0.03207168,139.3,139.16,0.28432314]
[1741307107700,0.03207168,139.3,139.15,3.50742538]
[1741307107701,0.03207168,139.3,139.25,0.28432314]
[1741307107869,0.03207168,139.3,139.27,0.14216157]
[1741307108262,0.03207168,139.3,139.28,0.14216157]
[1741307108471,0.03207168,139.3,139.29,200.90977967]
[1741307108690,0.03207168,139.3,139.29,199.40290339]
[1741307108882,0.033,139.42,139.39,0.14216157]
[1741307109084,0.033,139.42,139.32,1.50582959]
[1741307109287,1.2774169,139.42,139.33,312.0]
[1741307109583,23.2444169,139.41,139.2,155.62]
[1741307109791,0.14216157,139.38,139.21,1.50724735]
[1741307109963,0.14216157,139.36,139.1,10.3992]
[1741307110163,0.14216157,139.34,139.15,43.49858025]
[1741307110495,22.0,139.34,139.16,1.50819652]
[1741307110788,0.14216157,139.3,139.12,1.50791859]
[1741307110992,23.2444169,139.29,139.1,1.50791859]
[1741307111177,1.2444169,139.29,139.12,2.0]
[1741307111357,23.2444169,139.36,139.18,43.49858025]
[1741307111564,23.2444169,139.35,139.18,43.49858025]
[1741307111785,1.2444169,139.35,139.21,0.14216157]
[1741307111965,22.0,139.41,139.22,0.14216157]
[1741307112290,22.0,139.41,139.21,157.20939207]
[1741307112291,1.2774169,139.42,139.29,0.28432314]
[1741307112500,22.0,139.41,139.34,312.0]
[1741307112671,0.033,139.42,139.24,0.14216157]
[1741307112865,0.033,139.42,139.31,0.28432314]
[1741307113067,0.033,139.42,139.33,43.78290339]
[1741307113279,0.033,139.42,139.38,0.14216157]
[1741307113480,0.033,139.42,139.39,43.49858025]
[1741307113684,0.033,139.42,139.37,45.00407886]
[1741307113971,0.033,139.42,139.37,1.50549861]
[1741307114161,0.033,139.42,139.33,155.52]
[1741307114374,0.033,139.42,139.27,43.49858025]
[1741307114697,0.033,139.35,139.26,43.49858025]
[1741307114901,22.0,139.34,139.1,11.2241]
[1741307115216,23.2444169,139.33,139.16,43.49858025]
[1741307115393,0.14216157,139.32,139.18,43.49858025]
[1741307115560,1.2444169,139.33,139.19,3.50795042]
[1741307115765,0.033,139.35,139.29,43.49858025]
[1741307115965,0.033,139.35,139.31,0.14216157]
[1741307116379,0.033,139.35,139.31,0.28432314]
[1741307116593,0.033,139.35,139.17,0.14216157]
[1741307116770,22.0,139.34,139.2,43.49858025]
[1741307117094,73.38657847,139.33,139.1,43.49858025]
[1741307117305,2.0,139.28,139.12,0.28432314]
[1741307117477,23.2444169,139.27,139.11,1.5087543]
[1741307117680,0.14216157,139.32,139.11,1.5087543]
[1741307117877,0.14216157,139.27,139.08,1.50844297]
[1741307118100,1.2444169,139.26,139.06,155.5]
[1741307118293,2.0,139.24,139.07,1.50912843]
[1741307118469,1.2444169,139.26,138.99,43.49858025]
[1741307118470,2.0,139.19,138.99,43.49858025]
[1741307118671,23.2444169,139.18,139.01,43.49858025]
[1741307118876,2.0,139.17,138.98,43.49858025]
[1741307119075,244.92078929,139.26,138.97,1.53975895]
[1741307119076,25.2444169,139.16,138.99,1.50997497]
[1741307119288,1.2444169,139.16,139.03,312.0]
[1741307119491,22.0,139.15,139.03,312.0]
[1741307119679,23.2444169,139.14,138.97,0.03]
[1741307119894,0.14216157,139.07,138.97,0.03]
[1741307120092,0.14216157,139.04,138.95,2.1538496]
[1741307120295,0.14216157,139.02,138.95,2.1538496]
[1741307120495,23.2444169,139.01,138.95,2.1538496]
[1741307120698,23.2444169,139.07,138.95,2.1538496]
[1741307121004,22.14216157,139.06,138.95,2.1538496]
[1741307121209,2.14216157,139.04,138.84,54.56768025]
[1741307121413,0.14216157,139.02,138.82,45.0095452]
[1741307121704,2.14216157,139.0,138.79,1.51161511]
[1741307121903,0.14216157,138.98,138.81,43.49858025]
[1741307122084,0.14216157,138.98,138.84,43.49858025]
[1741307122085,1.2444169,138.98,138.84,43.49858025]
[1741307122274,23.38657847,138.97,138.79,1.51148106]
[1741307122474,2.0,138.94,138.79,1.5121021]
[1741307122731,0.14216157,138.91,138.78,95.67308696]
[1741307123008,50.0,138.94,138.78,95.67308696]
[1741307123009,0.14216157,138.88,138.78,95.67308696]
[1741307123182,0.14216157,138.86,138.78,95.67308696]
[1741307123383,1.2444169,138.86,138.78,95.67308696]
[1741307123695,22.0,138.89,138.78,95.67308696]
[1741307123900,23.2444169,138.88,138.78,95.67308696]
[1741307124100,22.0,138.94,138.79,1.5122436]
[1741307124297,1.2444169,138.93,138.8,0.14216157]
[1741307124612,0.14216157,138.91,138.78,95.67308696]
[1741307124808,0.14216157,138.89,138.78,95.67308696]
[1741307125013,23.2444169,138.88,138.78,95.67308696]
[1741307125231,22.0,138.87,138.78,95.67308696]
[1741307125504,23.2444169,138.86,138.59,2.21324235]
[1741307125705,22.0,138.85,138.7,312.0]
[1741307126001,23.2444169,138.84,138.66,2.1538496]
[1741307126213,24.0,138.83,138.66,2.1538496]
[1741307126390,2.0,138.78,138.66,2.1538496]
[1741307126601,23.2444169,138.77,138.66,2.1538496]
[1741307126802,2.0,138.73,138.66,2.1538496]
[1741307127007,23.2444169,138.72,138.58,0.71924024]
[1741307127206,22.0,138.71,138.58,0.71924024]
[1741307127415,23.2444169,138.7,138.58,0.71924024]
[1741307127593,22.0,138.69,138.58,0.71924024]
[1741307127796,0.14216157,138.67,138.58,0.71924024]
[1741307128101,2.0,138.72,138.58,0.71924024]
[1741307128102,23.2444169,138.66,138.58,0.71924024]
[1741307128326,241.92908929,138.72,138.58,0.71924024]
[1741307128327,23.2444169,138.71,138.58,0.71924024]
[1741307128523,0.14216157,138.69,138.58,0.71924024]
[1741307128704,52.14216157,138.67,138.58,0.71924024]
[1741307128905,0.14216157,138.64,138.58,0.71924024]
[1741307129218,0.14216157,138.62,138.58,0.71924024]
[1741307129520,0.14216157,138.58,138.47,0.45695592]
[1741307129709,2.0,138.55,138.47,0.45695592]
[1741307130022,23.2444169,138.54,138.47,0.45695592]
[1741307130273,22.0,138.53,138.47,0.45695592]
[1741307130394,1.2444169,138.52,138.47,0.45695592]
[1741307130597,23.2444169,138.55,138.47,0.45695592]
[1741307130821,22.0,138.54,138.47,0.45695592]
[1741307131023,23.38657847,138.53,138.52,0.03]
[1741307131227,1.38657847,138.53,138.52,0.03]
[1741307131731,1.2444169,138.53,138.52,0.03]
[1741307131909,1.2444169,138.56,138.52,0.03]
[1741307132254,1.2444169,138.63,138.52,0.03]
[1741307132433,1.2444169,138.64,138.53,43.49858025]
[1741307132629,2.0,138.68,138.53,43.49858025]
[1741307132837,1.2444169,138.67,138.52,0.03]
[1741307132994,2.0,138.64,138.52,0.03]
[1741307133195,0.14216157,138.62,138.52,0.03]
[1741307133396,0.14216157,138.6,138.52,0.03]
[1741307133623,1.2444169,138.59,138.52,0.03]
[1741307133931,0.14216157,138.6,138.44,0.14216157]
[1741307134140,1.2444169,138.59,138.44,43.49858025]
[1741307134444,0.14216157,138.56,138.37,2.1538496]
[1741307134745,0.14216157,138.54,138.38,43.49858025]
[1741307134907,1.2444169,138.53,138.4,43.49858025]
[1741307135111,0.14216157,138.56,138.4,43.49858025]
[1741307135318,0.14216157,138.54,138.37,2.1538496]
[1741307135540,0.14216157,138.52,138.37,2.1538496]
[1741307135712,23.2444169,138.53,138.42,43.49858025]
[1741307136032,22.0,138.57,138.42,43.49858025]
[1741307136221,23.2444169,138.56,138.38,1.51639628]
[1741307136424,1.2444169,138.56,138.46,43.49858025]
[1741307136640,22.0,138.55,138.46,43.49858025]
[1741307136845,22.0,138.55,138.41,0.28432314]
[1741307137014,22.0,138.59,138.43,0.14216157]
[1741307137212,23.2444169,138.58,138.39,1.51598645]
[1741307137512,0.14216157,138.56,138.38,11.2049]
[1741307137728,0.14216157,138.54,138.38,43.49858025]
[1741307137934,1.2444169,138.54,138.39,1.51667157]
[1741307138148,22.0,138.53,138.37,2.1538496]
[1741307138323,1.38657847,138.52,138.37,2.1538496]
[1741307138708,0.14216157,138.5,138.37,2.1538496]
[1741307138908,23.2444169,138.49,138.37,2.1538496]
[1741307139109,0.14216157,138.48,138.37,2.1538496]
[1741307139435,0.14216157,138.39,138.31,185.5103963]
[1741307139635,0.14216157,138.37,138.31,171.0207926]
[1741307139933,22.0,138.42,138.31,171.0207926]
[1741307140136,23.2444169,138.41,138.32,45.74147319]
[1741307140347,22.14216157,138.4,138.32,1.9634121]
[1741307140546,0.14216157,138.38,138.32,1.9634121]
[1741307140714,0.14216157,138.36,138.31,158.494601]
[1741307140914,1.2444169,138.35,138.31,144.0049973]
[1741307141140,0.14216157,138.33,138.31,129.5153936]
[1741307141314,22.14216157,138.32,138.31,129.5153936]
[1741307141513,50.14216157,138.32,138.31,107.92587648]
[1741307141741,1.2444169,138.33,138.31,107.92587648]
[1741307141922,0.14216157,138.34,138.31,107.92587648]
[1741307141923,1.2444169,138.34,138.31,107.92587648]
[1741307142121,0.14216157,138.33,138.31,107.92587648]
[1741307142321,1.38657847,138.32,138.31,107.92587648]
[1741307142755,51.38657847,138.32,138.31,107.92587648]
[1741307143320,1.38657847,138.32,138.31,107.92587648]
[1741307143535,0.14216157,138.32,138.31,107.92587648]
[1741307143745,1.38657847,138.32,138.31,107.92587648]
[1741307144049,1.2444169,138.32,138.31,107.92587648]
[1741307144252,1.2444169,138.32,137.96,10.8249]
[1741307144253,2.0,138.25,137.96,10.8249]
[1741307144453,1.2444169,138.24,138.08,45.74147319]
[1741307144655,0.14216157,138.23,138.07,45.74147319]
[1741307144950,0.14216157,138.21,138.09,1.7041935]
[1741307145128,1.2444169,138.2,138.09,1.7041935]
[1741307145450,0.14216157,138.25,138.09,1.7041935]
[1741307145743,73.2444169,138.24,138.09,1.7041935]
[1741307145950,50.0,138.2,138.09,1.7041935]
[1741307146155,23.38657847,138.19,138.09,1.7041935]
[1741307146355,0.14216157,138.17,138.09,1.7041935]
[1741307146521,23.2444169,138.16,138.09,1.7041935]
[1741307146715,22.14216157,138.15,138.09,1.7041935]
[1741307146915,23.2444169,138.14,138.09,1.7041935]
[1741307147152,0.14216157,138.12,138.09,1.7041935]
[1741307147327,1.2444169,138.12,138.09,1.7041935]
[1741307147537,22.0,138.14,138.09,1.7041935]
[1741307147718,1.2444169,138.14,138.09,1.7041935]
[1741307147921,21.792165,138.18,138.09,1.7041935]
[1741307148130,23.2444169,138.27,138.14,0.14216157]
[1741307148327,22.0,138.26,138.15,45.74147319]
[1741307148527,23.2444169,138.28,138.14,1.80355394]
[1741307148732,21.773892,138.29,138.14,1.80355394]
[1741307148733,23.2444169,138.37,138.22,0.14216157]
[1741307149063,23.2444169,138.37,138.16,18.0943]
[1741307149064,22.0,138.36,138.16,2.0]
[1741307149259,23.2444169,138.35,138.19,0.14216157]
[1741307149561,0.14216157,138.28,138.06,10.3966]
[1741307149759,0.14216157,138.24,138.06,10.3966]
[1741307150059,23.2444169,138.23,138.06,11.91678768]
[1741307150358,22.0,138.22,138.06,56.13807319]
[1741307150530,1.2444169,138.23,138.1,45.74147319]
[1741307150736,1.2444169,138.24,138.13,0.14216157]
[1741307151040,23.2444169,138.3,138.18,0.28432314]
[1741307151241,23.2444169,138.29,138.15,0.14216157]
[1741307151446,206.62,138.36,138.2,312.0]
[1741307151447,23.2444169,138.35,138.2,312.0]
[1741307151631,22.0,138.34,138.21,46.02579633]
[1741307151832,23.2444169,138.36,138.24,0.28432314]
[1741307152052,21.755514,138.41,138.28,0.28432314]
[1741307152253,21.755514,138.41,138.3,0.28432314]
[1741307152466,21.755514,138.41,138.25,47.74147319]
[1741307152467,0.033,138.37,138.28,1.51764825]
[1741307152671,0.033,138.37,138.36,0.14216157]
[1741307152964,1.2444169,138.47,138.29,7.2307]
[1741307153150,23.2444169,138.47,138.34,45.74147319]
[1741307153356,22.0,138.46,138.3,1.51716271]
[1741307153551,23.2444169,138.45,138.31,0.28432314]
[1741307153746,22.0,138.45,138.35,45.74147319]
[1741307153943,22.0,138.5,138.37,0.28432314]
[1741307154267,23.2444169,138.55,138.39,2.14216157]
[1741307154458,1.2444169,138.55,138.42,45.74147319]
[1741307154647,22.0,138.54,138.38,16.3146]
[1741307154852,23.2444169,138.53,138.3,12.3554208]
[1741307155049,0.14216157,138.45,138.3,10.8386]
[1741307155280,23.2444169,138.44,138.28,5.476]
[1741307155465,0.14216157,138.43,138.28,5.476]
[1741307155670,0.14216157,138.41,138.28,5.476]
[1741307155975,0.14216157,138.39,138.22,10.8386]
[1741307156158,0.14216157,138.37,138.22,54.75680943]
[1741307156343,23.2444169,138.36,138.22,56.27530244]
[1741307156542,23.2444169,138.43,138.26,43.91820943]
[1741307156843,23.2444169,138.43,138.22,12.35709301]
[1741307156844,0.14216157,138.39,138.22,10.8386]
[1741307157058,1.2444169,138.38,138.22,10.8386]
[1741307157257,0.14216157,138.36,138.22,10.8386]
[1741307157558,0.14216157,138.36,138.2,5.3133]
[1741307157559,0.14216157,138.34,138.2,5.3133]
[1741307157760,0.14216157,138.32,138.2,5.3133]
[1741307157971,0.14216157,138.29,138.19,0.983898]
[1741307158140,22.0,138.28,138.19,0.983898]
[1741307158341,22.0,138.3,138.2,43.91820943]
[1741307158537,23.2444169,138.41,138.24,43.91820943]
[1741307158743,22.0,138.4,138.27,43.91820943]
[1741307158947,23.2444169,138.4,138.26,0.28432314]
[1741307159167,23.2444169,138.48,138.3,0.28432314]
[1741307159363,22.0,138.47,138.29,43.91820943]
[1741307159668,24.54937462,138.46,138.28,0.28432314]
[1741307160040,22.0,138.45,138.32,0.14216157]
[1741307160238,22.0,138.45,138.34,0.14216157]
[1741307160476,1.2444169,138.49,138.34,45.71965631]
[1741307160639,22.0,138.5,138.36,44.20253257]
[1741307160841,1.2774169,138.51,138.36,44.20253257]
[1741307160842,0.033,138.51,138.44,0.14216157]
[1741307161149,0.033,138.51,138.47,0.28432314]
[1741307161386,0.033,138.51,138.39,0.14216157]
[1741307161558,0.033,138.51,138.42,43.91820943]
[1741307161872,0.033,138.51,138.5,0.28432314]
[1741307162058,0.033,138.59,138.55,2.0]
[1741307162241,22.0,138.71,138.58,43.91820943]
[1741307162443,2.0,138.86,138.57,2.0]
[1741307162444,1.2444169,138.8,138.65,43.91820943]
[1741307162654,22.0,138.79,138.68,20.0]
[1741307162847,23.2444169,138.86,138.69,2.0]
[1741307163053,1.2444169,138.86,138.71,46.20253257]
[1741307163366,1.2444169,138.86,138.75,2.0]
[1741307163570,1.1489665,138.88,138.73,0.28432314]
[1741307163740,1.1489665,138.88,138.74,1.51247418]
[1741307164068,152.66040474,138.87,138.65,0.28432314]
[1741307164267,2.0,138.83,138.63,7.23278222]
[1741307164568,2.0,138.75,138.61,1.51399805]
[1741307164755,2.0,138.68,138.51,1.51400591]
[1741307165075,22.0,138.67,138.51,1.51400591]
[1741307165367,0.14216157,138.63,138.46,2.0]
[1741307165663,0.14216157,138.61,138.42,43.91820943]
[1741307165863,23.2444169,138.66,138.48,2.0]
[1741307166167,0.14216157,138.64,138.42,1.51526112]
[1741307166463,2.0,138.72,138.51,43.91820943]
[1741307166762,24.04937462,138.71,138.52,45.43290891]
[1741307166970,21.1,138.76,138.59,0.28432314]
[1741307167145,22.3444169,138.75,138.61,0.28432314]
[1741307167338,22.3444169,138.75,138.58,3.51403081]
[1741307167339,21.1,138.85,138.69,312.0]
[1741307167652,1.2444169,138.84,138.7,1.51329768]
[1741307167852,21.1,138.86,138.73,0.28432314]
[1741307168053,21.1,138.86,138.64,1.51252393]
[1741307168054,2.0,138.82,138.64,1.51252393]
[1741307168250,0.14216157,138.78,138.53,1.51376985]
[1741307168441,0.14216157,138.74,138.51,200.31820943]
[1741307168643,0.14216157,138.72,138.52,1.51517426]
[1741307168842,50.0,138.68,138.49,11.3229]
[1741307169063,50.0,138.68,138.46,5.6717]
[1741307169064,50.0,138.64,138.46,5.6717]
[1741307169249,0.14216157,138.62,138.46,5.6717]
[1741307169451,22.3444169,138.61,138.46,5.6717]
[1741307169652,1.2444169,138.61,138.48,45.91820943]
[1741307169859,21.1,138.69,138.54,43.91820943]
[1741307170051,1.2444169,138.73,138.59,0.14216157]
[1741307170260,1.2444169,138.74,138.59,1.79854135]
[1741307170454,22.3444169,138.78,138.6,1.51402452]
[1741307170646,22.40495772,138.77,138.57,10.8956]
[1741307170847,50.14216157,138.73,138.48,2.0]
[1741307171061,22.3444169,138.72,138.55,43.91820943]
[1741307171249,22.3444169,138.72,138.47,10.8956]
[1741307171250,22.3444169,138.77,138.59,0.14216157]
[1741307171467,22.3444169,138.77,138.63,43.91820943]
[1741307171663,1.2444169,138.77,138.64,0.28432314]
[1741307171844,2.892441,138.79,138.66,0.28432314]
[1741307172063,0.033,138.87,138.72,0.14216157]
[1741307172064,22.3444169,138.85,138.72,0.14216157]
[1741307172245,21.1,138.86,138.75,45.91820943]
[1741307172472,0.033,138.87,138.76,0.28432314]
[1741307172649,0.033,138.87,138.79,2.28432314]
[1741307172848,0.033,138.87,138.8,0.28432314]
[1741307173055,21.1,138.86,138.73,1.51173922]
[1741307173252,22.3444169,138.85,138.64,54.73930943]
[1741307173562,21.24216157,138.84,138.64,10.8211]
[1741307173752,2.0,138.79,138.64,10.8211]
[1741307173952,0.14216157,138.73,138.56,1.51391055]
[1741307174178,0.14216157,138.71,138.52,5.2049]
[1741307174348,50.0,138.66,138.52,5.2049]
[1741307174548,22.3444169,138.65,138.48,1.51551565]
[1741307174770,21.1,138.64,138.48,1.51551565]
[1741307174975,22.3444169,138.63,138.47,10.947]
[1741307175159,1.2444169,138.63,138.47,56.38123924]
[1741307175361,22.3444169,138.64,138.52,2.0]
[1741307175551,0.14216157,138.72,138.52,1.51514649]
[1741307175747,50.14216157,138.7,138.47,10.947]
[1741307175976,50.0,138.64,138.42,161.8533]
[1741307176189,50.14216157,138.62,138.42,5.5733]
[1741307176383,0.14216157,138.6,138.42,5.5733]
[1741307176598,0.14216157,138.55,138.39,11.1109]
[1741307176884,0.14216157,138.53,138.34,0.03]
[1741307177184,0.14216157,138.49,138.34,0.03]
[1741307177359,50.14216157,138.47,138.34,0.03]
[1741307177683,50.14216157,138.45,138.34,0.03]
[1741307177860,2.14216157,138.43,138.34,0.03]
[1741307178058,0.14216157,138.38,138.34,0.03]
[1741307178273,22.3444169,138.37,138.34,0.03]
[1741307178475,21.1,138.43,138.34,0.03]
[1741307178675,21.1,138.47,138.34,0.03]
[1741307178884,21.1,138.46,138.34,0.03]
[1741307179064,22.3444169,138.45,138.34,0.03]
[1741307179389,0.14216157,138.4,138.34,0.03]
[1741307179565,0.14216157,138.38,138.34,0.03]
[1741307179763,0.14216157,138.36,138.23,5.9218]
[1741307180079,50.0,138.33,138.19,0.983898]
[1741307180261,22.48657847,138.32,138.19,0.983898]
[1741307180453,50.0,138.3,138.19,0.983898]
[1741307180653,2.85445841,138.37,138.19,0.983898]
[1741307180654,22.3444169,138.29,138.19,0.983898]
[1741307180854,1.2444169,138.29,138.19,0.983898]
[1741307181077,22.3444169,138.33,138.19,0.983898]
[1741307181263,21.1,138.32,138.19,0.983898]
[1741307181455,22.3444169,138.31,138.2,0.03]
[1741307181772,2.0,138.18,138.06,1.51961406]
[1741307181952,21.1,138.17,137.96,1.51995219]
[1741307182159,22.3444169,138.16,137.98,51.0072059]
[1741307182355,1.6390902,138.16,137.98,51.0072059]
[1741307182566,21.1,138.15,137.98,51.0072059]
[1741307182763,1.2444169,138.14,137.99,1.52101986]
[1741307182968,1.2444169,138.14,137.94,7.2495]
[1741307183164,21.1,138.13,138.01,1.5208934]
[1741307183379,22.3444169,138.12,138.0,314.0]
[1741307183683,21.1,138.11,138.0,2.0]
[1741307183856,22.3444169,138.1,138.0,2.0]
[1741307184059,21.1,138.09,138.0,2.0]
[1741307184581,22.3444169,138.08,138.0,2.0]
[1741307184785,21.1,138.07,138.0,2.0]
[1741307184959,22.3444169,138.06,138.0,2.0]
[1741307185157,21.1,138.05,138.0,2.0]
[1741307185362,21.1,138.04,138.0,2.0]
[1741307185572,1.2444169,138.11,138.0,2.0]
[1741307185573,22.3444169,138.03,138.0,2.0]
[1741307185767,1.2444169,138.03,138.0,2.0]
[1741307185976,23.1,138.02,138.0,2.0]
[1741307186286,24.3444169,138.01,138.0,0.1345]
[1741307186460,0.2601733,137.99,137.91,2.1328645]
[1741307186670,72.3444169,137.98,137.91,2.1328645]
[1741307186897,21.24216157,137.97,137.91,2.1328645]
[1741307187085,21.1,137.96,137.91,2.1328645]
[1741307187278,22.3444169,137.95,137.91,2.1328645]
[1741307187593,21.1,137.94,137.91,2.1328645]
[1741307187795,1.2444169,137.93,137.91,2.1328645]
[1741307187973,0.14216157,137.98,137.91,2.1328645]
[1741307188176,22.3444169,137.97,137.91,2.1328645]
[1741307188586,21.1,137.96,137.91,2.1328645]
[1741307188799,0.14216157,137.94,137.91,2.1328645]
[1741307188994,22.3444169,137.93,137.91,2.1328645]